fUSD/lending_fUSD_20251229
["ID","MTS","AMOUNT","RATE_DAILY","PERIOD"]
[399978785,1766968950113,500.0,0.00012835,2]
[399978786,1766968950287,150.0,0.00012671,2]
[399978787,1766968950442,150.0,0.00012698,2]
[399978788,1766968950609,200.0,0.00012726,2]
[399978789,1766968951018,-167.02443224,0.00012863,2]
[399978790,1766968956826,1600.0,0.00012122,2]
[399978791,1766968958657,233.14321589,0.000301,120]
[399978792,1766968968594,325.58937993,0.00012845,2]
[399978793,1766968968621,56.07677409,0.00012845,2]
[399978794,1766968982000,155.0,0.000301,120]
[399978795,1766968984490,155.0,0.000301,120]
[399978797,1766968986546,150.0,0.00012671,2]
[399978798,1766968986728,150.0,0.00012698,2]
[399978799,1766968986937,150.0,0.00012726,2]
[399978800,1766968987100,150.0,0.00012753,2]
[399978801,1766968987254,150.0,0.00012781,2]
[399978802,1766968987608,238.0,0.00012808,2]
[399978803,1766968988928,155.0,0.000301,120]
[399978804,1766968989907,155.0,0.000301,120]
[399978805,1766968993076,175.56746507,0.00012845,2]
[399978806,1766969019107,155.0,0.000301,120]
[399978807,1766969027314,155.0,0.000301,120]
[399978808,1766969035791,153.81,0.0001249,2]
[399978809,1766969051592,150.0,0.0001267,2]
[399978810,1766969051871,163.96941322,0.0001267,2]
[399978811,1766969052096,150.0,0.0001267,2]
[399978812,1766969052819,150.0,0.0001267,2]
[399978813,1766969052856,150.0,0.0001267,2]
[399978814,1766969052898,150.0,0.0001267,2]
[399978815,1766969053063,150.0,0.00012697,2]
[399978816,1766969053244,200.0,0.00012725,2]
[399978819,1766969108906,254.44410268,0.00012845,2]
[399978824,1766969173190,4125.93963329,0.00012845,2]
[399978825,1766969249175,169.62940178,0.00012845,2]
[399978826,1766969291159,2812.57320987,0.00012844,2]
[399978827,1766969291185,10000.01,0.00012844,2]
[399978828,1766969291214,10000.01,0.00012844,2]
[399978829,1766969291240,10000.01,0.00012844,2]
[399978830,1766969291266,10000.01,0.00012844,2]
[399978831,1766969291292,10000.01,0.00012844,2]
[399978832,1766969291318,10000.01,0.00012844,2]
[399978833,1766969291344,10000.01,0.00012844,2]
[399978834,1766969291368,10000.01,0.00012844,2]
[399978835,1766969291394,10000.01,0.00012844,2]
[399978836,1766969294347,-150.0,0.0001267,2]
[399978837,1766969294376,-1625.0,0.0001267,2]
[399978838,1766969294971,-150.0,0.00012697,2]
[399978839,1766969294994,-129.47022184,0.00012697,2]
[399978840,1766969296558,-243.22392147,0.00012697,2]
[399978841,1766969298055,-238.0,0.00012697,2]
[399978842,1766969300086,-323.12183804,0.00012697,2]
[399978843,1766969302307,-235.73486716,0.00012697,2]
[399978844,1766969306048,-247.48230005,0.00012697,2]
[399978845,1766969307496,-207.96685144,0.00012697,2]
[399978846,1766969307521,-161.79245406,0.00012725,2]
[399978847,1766969309462,-38.20754594,0.00012725,2]
[399978848,1766969309490,-1625.0,0.00012725,2]
[399978849,1766969309518,-1625.0,0.00012752,2]
[399978850,1766969309546,-1625.0,0.0001278,2]
[399978851,1766969309682,-1625.0,0.00012807,2]
[399978852,1766969309710,-1625.0,0.00012834,2]
[399978853,1766969310550,-275.6584545,0.00012844,2]
[399978854,1766969311733,542.00081514,0.00012843,2]
[399978855,1766969312772,500.0,0.00012843,2]
[399978856,1766969312828,500.0,0.00012843,2]
[399978857,1766969312877,500.0,0.00012843,2]
[399978858,1766969312942,500.0,0.00012843,2]
[399978859,1766969312988,500.0,0.00012843,2]
[399978860,1766969313037,458.00918486,0.00012843,2]
[399978861,1766969313065,41.99081514,0.00012843,2]
[399978862,1766969313111,500.0,0.00012843,2]
[399978863,1766969313164,500.0,0.00012843,2]
[399978864,1766969313207,500.0,0.00012843,2]
[399978865,1766969313255,500.0,0.00012843,2]
[399978866,1766969313308,500.0,0.00012843,2]
[399978867,1766969313355,500.0,0.00012843,2]
[399978868,1766969313398,500.0,0.00012843,2]
[399978869,1766969313446,500.0,0.00012843,2]
[399978870,1766969313495,500.0,0.00012843,2]
[399978871,1766969313541,500.0,0.00012843,2]
[399978872,1766969313606,500.0,0.00012843,2]
[399978873,1766969313654,500.0,0.00012843,2]
[399978874,1766969313714,500.0,0.00012843,2]
[399978875,1766969313763,500.0,0.00012843,2]
[399978876,1766969313816,500.0,0.00012843,2]
[399978877,1766969313860,500.0,0.00012843,2]
[399978878,1766969313908,500.0,0.00012843,2]
[399978879,1766969313940,-431.75930457,0.00012844,2]
[399978880,1766969313987,486.87915004,0.00012843,2]
[399978881,1766969320177,-342.9528579,0.00012844,2]
[399978882,1766969322471,-288.27407549,0.00012844,2]
[399978883,1766969323983,-175.23372225,0.00012844,2]
[399978884,1766969327604,-194.10623019,0.00012844,2]
[399978885,1766969329664,-521.77459167,0.00012844,2]
[399978886,1766969331333,-181.22537532,0.00012844,2]
[399978887,1766969336413,-273.52029713,0.00012844,2]
[399978888,1766969338969,-286.11407827,0.00012844,2]
[399978889,1766969341258,300.0,0.00012843,2]
[399978890,1766969342204,-313.01347322,0.00012844,2]
[399978891,1766969346027,-160.66260409,0.00012844,2]
[399978892,1766969348987,500.0,0.00012843,2]
[399978893,1766969349041,171.14003482,0.00012843,2]
[399978894,1766969349074,328.85996518,0.00012843,2]
[399978895,1766969349118,500.0,0.00012843,2]
[399978896,1766969349167,500.0,0.00012843,2]
[399978897,1766969349212,500.0,0.00012843,2]
[399978898,1766969349532,500.0,0.00012843,2]
[399978899,1766969349573,500.0,0.00012843,2]
[399978900,1766969349622,500.0,0.00012843,2]
[399978901,1766969349665,500.0,0.00012843,2]
[399978902,1766969349703,500.0,0.00012843,2]
[399978903,1766969349750,500.0,0.00012843,2]
[399978904,1766969349792,631.91235037,0.00012843,2]
[399978905,1766969349838,500.0,0.00012843,2]
[399978906,1766969351654,-443.91783557,0.00012844,2]
[399978907,1766969353212,-319.47994353,0.00012844,2]
[399978908,1766969354636,-215.48741753,0.00012844,2]
[399978909,1766969356669,-324.40644022,0.00012844,2]
[399978910,1766969358197,-469.56049341,0.00012844,2]
[399978911,1766969360340,-1060.1599741,0.00012844,2]
[399978912,1766969363114,-500.0,0.00012844,2]
[399978913,1766969365995,-387.67651302,0.00012844,2]
[399978914,1766969368152,-155.26093895,0.00012844,2]
[399978915,1766969370197,-276.18542143,0.00012844,2]
[399978916,1766969371645,-242.78048737,0.00012844,2]
[399978917,1766969389436,169.62940178,0.00012756,2]
[399978918,1766969401191,300.0,0.00012843,2]
[399978919,1766969401230,1200.0,0.00012843,2]
[399978920,1766969414926,151.0,0.00012841,2]
[399978921,1766969419282,2218.60828267,0.00012756,2]
[399978922,1766969419306,2118.19084112,0.00012756,2]
[399978924,1766969432091,-95220.13868464,0.00012844,2]
[399978925,1766969432103,-46539.61908042,0.00012844,2]
[399978926,1766969432115,-280495.47973092,0.00012844,2]
[399978927,1766969432127,-9051.93271053,0.00012844,2]
[399978928,1766969432139,-37997.18713535,0.00012844,2]
[399978929,1766969432151,-10601.67080775,0.00012844,2]
[399978930,1766969432163,-1104.82449094,0.00012844,2]
[399978931,1766969432176,-748.69638418,0.00012844,2]
[399978932,1766969432188,-526.8195669,0.00012844,2]
[399978933,1766969432200,-300.0,0.00012844,2]
[399978934,1766969432256,-734.27815119,0.00012844,2]
[399978935,1766969432268,-2376.13,0.00012844,2]
[399978936,1766969432280,-999.0,0.00012844,2]
[399978937,1766969432291,-700.0,0.00012844,2]
[399978938,1766969432304,-1706.49592439,0.00012844,2]
[399978939,1766969432315,-1435.1029539,0.00012844,2]
[399978998,1766969438297,-108310.54972504,0.00012844,2]
[399978999,1766969438309,-21938.90704532,0.00012844,2]
[399979000,1766969438320,-822.627884,0.00012844,2]
[399979001,1766969438350,-8636.2463864,0.00012844,2]
[399979002,1766969438405,-29987.88266827,0.00012844,2]
[399979003,1766969438416,-3729.44527212,0.00012844,2]
[399979004,1766969438428,-5009.47133818,0.00012844,2]
[399979005,1766969438439,-540.01220046,0.00012844,2]
[399979022,1766969440239,-3561.99998,0.00012844,2]
[399979023,1766969440347,-883.5934261,0.00012844,2]
[399979024,1766969440359,-2065.007212,0.00012844,2]
[399979025,1766969440371,-591.7074084,0.00012844,2]
[399979026,1766969440504,-552.1046876,0.00012844,2]
[399979029,1766969441117,-1.7e-07,0.00012844,2]
[399979030,1766969443027,715.37431108,0.00012756,2]
[399979040,1766969444557,-353.567998,0.00012844,2]
[399979052,1766969446290,-2726.21303154,0.00012844,2]
[399979053,1766969446396,-1829.34553817,0.00012844,2]
[399979054,1766969446407,-1579.70994792,0.00012844,2]
[399979055,1766969446450,-1065.32192759,0.00012844,2]
[399979056,1766969446461,-817.05,0.00012844,2]
[399979059,1766969453239,562.62330823,0.00012843,2]
[399979060,1766969461503,150.0,0.00012843,2]
[399979061,1766969461796,175.72862875,0.00012843,2]
[399979062,1766969463576,351.06365468,0.00012756,2]
[399979063,1766969467499,500.0,0.00012843,2]
[399979064,1766969467560,500.0,0.00012843,2]
[399979065,1766969476108,500.0,0.00012843,2]
[399979066,1766969476164,557.35303445,0.00012843,2]
[399979067,1766969478907,500.0,0.00012843,2]
[399979068,1766969484918,500.0,0.00012843,2]
[399979069,1766969495129,407.6376526,0.00012843,2]
[399979070,1766969521521,300.0,0.00012843,2]
[399979071,1766969526379,500.0,0.00012843,2]
[399979072,1766969535130,151.0,0.00012841,2]
[399979073,1766969548389,261.8394808,0.0001275,2]
[399979074,1766969557647,500.0,0.00012843,2]
[399979075,1766969581070,904.68,6.455e-05,2]
[399979076,1766969581274,904.68,6.795e-05,2]
[399979077,1766969581484,904.68,7.134e-05,2]
[399979078,1766969581627,300.0,0.00012843,2]
[399979079,1766969581690,904.68,7.474e-05,2]
[399979080,1766969581896,904.68,7.814e-05,2]
[399979081,1766969582090,904.68,8.154e-05,2]
[399979082,1766969582459,904.68,8.493e-05,2]
[399979083,1766969582514,904.68,8.833e-05,2]
[399979084,1766969582730,904.68,9.173e-05,2]
[399979085,1766969582927,904.68,9.512e-05,2]
[399979086,1766969583168,653.21,9.852e-05,2]
[399979087,1766969583192,251.47,9.852e-05,2]
[399979088,1766969583383,904.68,0.00010192,2]
[399979089,1766969583591,904.68,0.00010532,2]
[399979090,1766969583796,904.68,0.00010871,2]
[399979091,1766969583994,904.68,0.00011211,2]
[399979092,1766969584204,904.68,0.00011551,2]
[399979093,1766969584407,904.68,0.00011891,2]
[399979094,1766969584616,904.68,0.0001223,2]
[399979095,1766969584834,904.68,0.0001257,2]
[399979096,1766969596901,462.91692142,0.00012843,2]
[399979097,1766969626686,-155.0,0.000298,30]
[399979098,1766969626718,-45.0,0.00032,120]
[399979099,1766969641222,300.0,0.00012843,2]
[399979100,1766969641617,150.0,0.00012843,2]
[399979101,1766969648421,-110.0,0.00032,120]
[399979102,1766969648456,-90.0,0.00035,120]
[399979103,1766969652452,537.08307858,0.00012843,2]
[399979104,1766969672295,-65.0,0.00035,120]
[399979105,1766969672322,-135.0,0.00035616,120]
[399979106,1766969684720,500.0,0.00012843,2]
[399979107,1766969701147,300.0,0.00012843,2]
[399979108,1766969701433,261.1,0.00012843,2]
[399979109,1766969701455,938.9,0.00012843,2]
[399979110,1766969701702,300.0,0.00012843,2]
[399979111,1766969712917,500.0,0.00012744,2]
[399979112,1766969716036,500.0,0.00012843,2]
[399979113,1766969747348,500.0,0.00012843,2]
[399979114,1766969761421,300.0,0.00012843,2]
[399979115,1766969778657,500.0,0.00012843,2]
[399979116,1766969809368,577.52800519,0.00012834,2]
[399979117,1766969810418,500.0,0.00012843,2]
[399979118,1766969832875,200.0,0.00012844,2]
[399979120,1766969838273,500.0,0.00012844,2]
[399979121,1766969839410,215.0738,0.00012844,2]
[399979122,1766969841319,500.0,0.00012744,2]
[399979123,1766969841434,200.0,0.00012844,2]
[399979124,1766969842246,500.0,0.00012843,2]
[399979128,1766969873572,500.0,0.00012843,2]
[399979129,1766969881250,300.0,0.00012843,2]
[399979131,1766969904914,590.57847846,0.00012843,2]
[399979132,1766969929534,1877.92971635,0.0001275,2]
[399979133,1766969929556,2025.18949507,0.0001275,2]
[399979134,1766969936425,500.0,0.00012843,2]
[399979135,1766969979826,500.0,0.00012843,2]
[399979136,1766969990811,329.1245,0.00012744,2]
[399979137,1766969997628,500.0,0.00012843,2]
[399979138,1766970001194,300.0,0.00012843,2]
[399979139,1766970001234,1200.0,0.00012843,2]
[399979140,1766970001394,300.0,0.00012843,2]
[399979141,1766970031064,500.0,0.00012843,2]
[399979142,1766970061233,300.0,0.00012843,2]
[399979143,1766970064866,500.0,0.00012843,2]
[399979144,1766970093905,419.31305172,0.00012843,2]
[399979145,1766970121223,300.0,0.00012843,2]
[399979146,1766970189218,1000.0,0.00012843,2]
[399979147,1766970210302,351.03,0.00030137,120]
[399979148,1766970301422,300.0,0.00012843,2]
[399979149,1766970301464,1026.38295321,0.00012843,2]
[399979150,1766970301485,173.61704679,0.00012843,2]
[399979151,1766970311173,9826.39295321,0.00012744,2]
[399979152,1766970311200,10000.01,0.00012744,2]
[399979153,1766970311227,10000.01,0.00012744,2]
[399979154,1766970311253,10000.01,0.00012744,2]
[399979155,1766970311280,10000.01,0.00012744,2]
[399979156,1766970311306,10000.01,0.00012744,2]
[399979157,1766970311332,10000.01,0.00012744,2]
[399979158,1766970311358,10000.01,0.00012744,2]
[399979159,1766970311383,10000.01,0.00012744,2]
[399979160,1766970323466,-479.86979967,0.00012744,2]
[399979161,1766970326003,-213.09068168,0.00012744,2]
[399979162,1766970328052,-487.89217036,0.00012744,2]
[399979163,1766970329520,-300.0,0.00012744,2]
[399979164,1766970331514,-703.30915352,0.00012744,2]
[399979165,1766970333927,-912.10157944,0.00012744,2]
[399979166,1766970335306,-390.0,0.00012744,2]
[399979167,1766970337371,-500.0,0.00012744,2]
[399979168,1766970338931,674.532,0.00012489,2]
[399979169,1766970338970,-206.23950714,0.00012744,2]
[399979170,1766970340974,-300.86586413,0.00012744,2]
[399979171,1766970342013,3713.34566997,0.00012742,2]
[399979172,1766970344711,-334.41174626,0.00012744,2]
[399979173,1766970346282,-299.3087587,0.00012744,2]
[399979174,1766970347780,-162.8662351,0.00012744,2]
[399979175,1766970349787,-320.21220242,0.00012744,2]
[399979176,1766970355510,-170.87836276,0.00012744,2]
[399979177,1766970358047,-325.56477699,0.00012744,2]
[399979178,1766970360128,-177.5113,0.00012744,2]
[399979179,1766970361376,300.0,0.00012743,2]
[399979180,1766970362182,-301.7390988,0.00012744,2]
[399979181,1766970363721,-215.57405543,0.00012744,2]
[399979182,1766970365763,-258.31429703,0.00012744,2]
[399979183,1766970369215,-162.74,0.00012744,2]
[399979184,1766970370669,-373.37230186,0.00012744,2]
[399979185,1766970374053,-265.79197358,0.00012744,2]
[399979186,1766970376167,-218.9903641,0.00012744,2]
[399979187,1766970378772,-190.82446847,0.00012744,2]
[399979188,1766970380821,-174.72569709,0.00012744,2]
[399979189,1766970384016,-208.61837519,0.00012744,2]
[399979190,1766970385985,-494.52616474,0.00012744,2]
[399979191,1766970387443,-333.82944524,0.00012744,2]
[399979192,1766970388902,-174.81199944,0.00012744,2]
[399979193,1766970390927,-341.16975742,0.00012744,2]
[399979194,1766970391801,500.0,0.00012743,2]
[399979195,1766970391839,223.73058194,0.00012743,2]
[399979196,1766970392010,258.6242471,0.00012743,2]
[399979197,1766970392178,240.14712411,0.00012743,2]
[399979198,1766970392360,-207.4,0.00012744,2]
[399979199,1766970393840,-218.4614165,0.00012744,2]
[399979200,1766970395212,-259.36606633,0.00012744,2]
[399979201,1766970397077,640.29128219,0.00012743,2]
[399979202,1766970397122,503.42768977,0.00012743,2]
[399979203,1766970397164,500.0,0.00012743,2]
[399979204,1766970397206,500.0,0.00012743,2]
[399979205,1766970397253,500.0,0.00012743,2]
[399979206,1766970397297,500.0,0.00012743,2]
[399979207,1766970397354,500.0,0.00012743,2]
[399979208,1766970397398,445.91140492,0.00012743,2]
[399979209,1766970397424,54.08859508,0.00012743,2]
[399979210,1766970397474,500.0,0.00012743,2]
[399979211,1766970397515,500.0,0.00012743,2]
[399979212,1766970397551,-165.49172365,0.00012744,2]
[399979213,1766970397599,500.0,0.00012743,2]
[399979214,1766970397638,500.0,0.00012743,2]
[399979215,1766970397679,500.0,0.00012743,2]
[399979216,1766970397719,500.0,0.00012743,2]
[399979217,1766970397758,500.0,0.00012743,2]
[399979218,1766970397801,500.0,0.00012743,2]
[399979219,1766970397839,500.0,0.00012743,2]
[399979220,1766970397881,500.0,0.00012743,2]
[399979221,1766970397919,319.39816463,0.00012743,2]
[399979222,1766970397957,500.0,0.00012743,2]
[399979223,1766970397995,500.0,0.00012743,2]
[399979224,1766970398034,500.0,0.00012743,2]
[399979225,1766970398831,-174.64776622,0.00012744,2]
[399979226,1766970400284,-190.30025053,0.00012744,2]
[399979227,1766970404476,-251.1868518,0.00012744,2]
[399979228,1766970406024,-159.44808783,0.00012744,2]
[399979229,1766970406267,156.61140735,0.00012743,2]
[399979230,1766970409526,-166.93819676,0.00012744,2]
[399979231,1766970412427,-279.48633976,0.00012744,2]
[399979232,1766970414510,-202.2247571,0.00012744,2]
[399979233,1766970417114,-256.79390013,0.00012744,2]
[399979234,1766970419645,-243.80804706,0.00012744,2]
[399979235,1766970421295,-198.47900106,0.00012744,2]
[399979236,1766970422748,-266.95326472,0.00012744,2]
[399979237,1766970425355,-200.13488385,0.00012744,2]
[399979238,1766970426815,-377.09126673,0.00012744,2]
[399979239,1766970429321,-352.18656946,0.00012744,2]
[399979240,1766970431898,-316.98917704,0.00012744,2]
[399979241,1766970434250,500.0,0.00012743,2]
[399979242,1766970434293,500.0,0.00012743,2]
[399979243,1766970434333,500.0,0.00012743,2]
[399979244,1766970434371,-277.8180708,0.00012744,2]
[399979245,1766970434412,500.0,0.00012743,2]
[399979246,1766970434455,500.0,0.00012743,2]
[399979247,1766970434492,469.91183294,0.00012743,2]
[399979248,1766970434516,30.08816706,0.00012743,2]
[399979249,1766970434557,500.0,0.00012743,2]
[399979250,1766970434604,500.0,0.00012743,2]
[399979251,1766970434652,500.0,0.00012743,2]
[399979252,1766970434689,500.0,0.00012743,2]
[399979253,1766970434738,500.0,0.00012743,2]
[399979254,1766970434779,500.0,0.00012743,2]
[399979255,1766970434830,203.39104575,0.00012743,2]
[399979256,1766970434869,500.0,0.00012743,2]
[399979257,1766970434922,500.0,0.00012743,2]
[399979258,1766970435771,-243.11394327,0.00012744,2]
[399979259,1766970437465,-160.34407081,0.00012744,2]
[399979260,1766970439260,-238.02179816,0.00012744,2]
[399979261,1766970440835,-251.78707284,0.00012644,2]
[399979262,1766970442191,-3261.02021742,0.00012644,2]
[399979263,1766970445512,-6687.62271161,0.00012744,2]
[399979264,1766970445637,-10000.01,0.00012744,2]
[399979265,1766970445768,-10000.01,0.00012744,2]
[399979266,1766970445871,-10000.01,0.00012744,2]
[399979267,1766970445974,-10000.01,0.00012744,2]
[399979268,1766970446071,-10000.01,0.00012744,2]
[399979269,1766970446177,-10000.01,0.00012744,2]
[399979270,1766970446308,-10000.01,0.00012744,2]
[399979271,1766970446418,-10000.01,0.00012744,2]
[399979272,1766970446796,-10000.01,0.00012744,2]
[399979273,1766970446887,-10000.01,0.00012744,2]
[399979274,1766970447028,-10000.01,0.00012744,2]
[399979275,1766970448278,-10000.01,0.00012744,2]
[399979276,1766970448487,-10000.01,0.00012744,2]
[399979277,1766970448610,-10000.01,0.00012744,2]
[399979278,1766970448738,-10000.01,0.00012744,2]
[399979279,1766970449080,-10000.01,0.00012744,2]
[399979280,1766970449190,-10000.01,0.00012744,2]
[399979281,1766970449305,-10000.01,0.00012744,2]
[399979282,1766970449422,-10000.01,0.00012744,2]
[399979283,1766970449522,-10000.01,0.00012744,2]
[399979284,1766970449637,-10000.01,0.00012744,2]
[399979285,1766970449754,-10000.01,0.00012744,2]
[399979286,1766970449860,-10000.01,0.00012744,2]
[399979287,1766970449968,-10000.01,0.00012744,2]
[399979288,1766970450081,-10000.01,0.00012744,2]
[399979289,1766970450203,-10000.01,0.00012744,2]
[399979290,1766970455200,999.0,0.00013099,3]
[399979291,1766970473106,-208.56207089,0.00012744,2]
[399979292,1766970475306,-278.54693503,0.00012744,2]
[399979293,1766970477381,-190.56397186,0.00012744,2]
[399979294,1766970480012,-415.60601092,0.00012744,2]
[399979295,1766970483262,-452.35058792,0.00012744,2]
[399979296,1766970485826,-256.0,0.00012744,2]
[399979297,1766970489673,-287.94946186,0.00012744,2]
[399979298,1766970491722,-170.48221502,0.00012744,2]
[399979299,1766970494429,-240.72728583,0.00012744,2]
[399979300,1766970496718,-302.00611386,0.00012744,2]
[399979301,1766970500173,-153.25117766,0.00012744,2]
[399979302,1766970501659,-177.69608338,0.00012744,2]
[399979303,1766970505498,-224.56179504,0.00012744,2]
[399979304,1766970515576,155.21869481,0.00012644,2]
[399979305,1766970601155,300.0,0.00012743,2]
[399979306,1766970601197,1200.0,0.00012743,2]
[399979307,1766970608545,8344.79130519,0.00012743,2]
[399979308,1766970608568,8253.42757181,0.00012743,2]
[399979316,1766970631312,-9643.45764893,0.00012744,2]
[399979317,1766970631324,-1579.07277298,0.00012744,2]
[399979318,1766970631368,-486.87103,0.00012744,2]
[399979319,1766970631380,-1547.72914443,0.00012744,2]
[399979320,1766970631431,-4472.71911497,0.00012744,2]
[399979321,1766970631442,-1940.72002138,0.00012744,2]
[399979322,1766970631454,-2097.0,0.00012744,2]
[399979323,1766970631487,-446.88,0.00012744,2]
[399979324,1766970631544,-612.07,0.00012744,2]
[399979344,1766970637440,-2494.63001513,0.00012744,2]
[399979345,1766970637451,-829.54982984,0.00012744,2]
[399979346,1766970637489,-37746.01196906,0.00012744,2]
[399979347,1766970637500,-582.82774303,0.00012744,2]
[399979348,1766970637511,-1266.01117204,0.00012744,2]
[399979349,1766970637545,-289080.59120963,0.00012744,2]
[399979360,1766970639437,-959.65960255,0.00012744,2]
[399979361,1766970639547,-898.15901628,0.00012744,2]
[399979362,1766970639559,-1911.76033256,0.00012744,2]
[399979363,1766970639661,-901.85396252,0.00012744,2]
[399979364,1766970639672,-15941.23605073,0.00012744,2]
[399979367,1766970640322,-1.7e-07,0.00012744,2]
[399979371,1766970643168,-881.0,0.00012744,2]
[399979372,1766970643225,-6587.776033,0.00012744,2]
[399979373,1766970643285,-43560.1099394,0.00012744,2]
[399979374,1766970644103,-30358.26955966,0.00012744,2]
[399979383,1766970645424,-48626.4191349,0.00012744,2]
[399979384,1766970645643,-5103.0,0.00012744,2]
[399979385,1766970645654,-500.0,0.00012744,2]
[399979386,1766970645704,-444.81816065,0.00012744,2]
[399979389,1766970661530,300.0,0.00012743,2]
[399979390,1766970712922,478.0768,0.00012644,2]
[399979391,1766970721588,300.0,0.00012743,2]
[399979392,1766970721629,150.0,0.00012743,2]
[399979393,1766970724808,201.23401647,0.00012744,2]
[399979394,1766970726063,304.04701309,0.00012743,2]
[399979395,1766970727920,500.0,0.00012744,2]
[399979396,1766970732625,-9513.23459863,0.00012744,2]
[399979397,1766970732766,-10000.01,0.00012744,2]
[399979398,1766970732939,-10000.01,0.00012744,2]
[399979399,1766970733044,-10000.01,0.00012744,2]
[399979400,1766970733167,-10000.01,0.00012744,2]
[399979401,1766970733297,-10000.01,0.00012744,2]
[399979402,1766970733397,-10000.01,0.00012744,2]
[399979403,1766970733493,-10000.01,0.00012744,2]
[399979404,1766970735078,-151.0,0.00012744,2]
[399979405,1766970735119,-9698.01,0.00012744,2]
[399979406,1766970735162,-10000.01,0.00012744,2]
[399979407,1766970741116,-500.0,0.00012743,2]
[399979408,1766970741151,-500.0,0.00012743,2]
[399979409,1766970741185,-500.0,0.00012743,2]
[399979410,1766970741220,-500.0,0.00012743,2]
[399979411,1766970741254,-500.0,0.00012743,2]
[399979412,1766970741287,-500.0,0.00012743,2]
[399979413,1766970741321,-500.0,0.00012743,2]
[399979414,1766970741356,-500.0,0.00012743,2]
[399979415,1766970741389,-500.0,0.00012743,2]
[399979416,1766970741421,-500.0,0.00012743,2]
[399979417,1766970741523,-151.0,0.00012744,2]
[399979418,1766970741552,-151.0,0.00012744,2]
[399979419,1766970741583,-151.0,0.00012744,2]
[399979420,1766970741611,-200.0,0.00012744,2]
[399979421,1766970741653,-151.0,0.00012744,2]
[399979422,1766970741696,-151.0,0.00012744,2]
[399979423,1766970741727,-200.0,0.00012744,2]
[399979424,1766970741758,-151.0,0.00012744,2]
[399979425,1766970741790,-151.0,0.00012744,2]
[399979426,1766970741926,-151.0,0.00012744,2]
[399979427,1766970742034,-500.0,0.00012743,2]
[399979428,1766970742072,-500.0,0.00012743,2]
[399979429,1766970742211,-500.0,0.00012743,2]
[399979430,1766970742246,-500.0,0.00012743,2]
[399979431,1766970742414,-500.0,0.00012743,2]
[399979432,1766970742451,-500.0,0.00012743,2]
[399979433,1766970742484,-500.0,0.00012743,2]
[399979434,1766970742698,-170.54212335,0.00012743,2]
[399979435,1766970742708,-3311.47787665,0.00012744,2]
[399979436,1766970742755,-151.0,0.00012743,2]
[399979437,1766970743207,-349.0,0.00012743,2]
[399979438,1766970743242,-151.0,0.00012744,2]
[399979439,1766970743279,-9198.01,0.00012744,2]
[399979440,1766970743297,-500.0,0.00012744,2]
[399979441,1766970743311,-500.0,0.00012744,2]
[399979442,1766970743325,-500.48910066,0.00012744,2]
[399979443,1766970743335,-684.7274,0.00012744,2]
[399979444,1766970743617,-151.0,0.00012744,2]
[399979445,1766970744298,-151.0,0.00012744,2]
[399979446,1766970744328,-151.0,0.00012744,2]